Cogmind - Beta 13 @@@ ROGUE MODE // 2024.04.07 @ 05:44:08 Player: kirkalish Result: Destroyed by IH-OVT(R) with Subdweller Beam Cannon Performance ------------- Evolutions (0) 0 Regions Visited (2) 400 Robots Destroyed (15) 75 Value Destroyed (483) 483 Prototype IDs (2) 40 Alien Tech Used (0) 0 Bonus (0) 0 TOTAL SCORE: 998 Bonus ------- None Cogmind --------- Core Integrity 0/250 Matter 258/300 Energy 100/250 System Corruption 0% Temperature Warm (114) Movement Walking (400) Ox4 Location -10/Subcaves Parts ------- > --- POWER (1) -------- Ion Engine > --- PROPULSION (2) --- Aluminum Leg Aluminum Leg > --- UTILITY (2) ------ Huge Storage Unit Shield Generator > --- WEAPON (2) ------- Assault Rifle Assault Rifle > --- INVENTORY (25) --- Aluminum Leg Flight Unit Flight Unit Flight Unit Flight Unit Flight Unit Flight Unit Flight Unit Sensor Array Propulsion Shielding Backup Plating I Particle Gun Grenade Launcher Datajack Peak State ------------ > --- POWER ------------ Ion Engine > --- PROPULSION ------- Aluminum Leg Aluminum Leg > --- UTILITY ---------- Huge Storage Unit Shield Generator > --- WEAPON ----------- Assault Rifle Assault Rifle > --- INVENTORY -------- Aluminum Leg Flight Unit Flight Unit Flight Unit Sensor Array Propulsion Shielding Backup Plating I Particle Gun Grenade Launcher [Rating: 9] Favorites ----------- Power Ion Engine Engine Ion Engine Propulsion Aluminum Leg Treads Light Treads Leg Aluminum Leg Utility Huge Storage Unit Device Shield Generator Storage Huge Storage Unit Protection Backup Plating I Weapon Assault Rifle Energy Gun EM Pulse Gun Ballistic Gun Assault Rifle Launcher Grenade Launcher Build | -11 -10 -10 ------- Run | Yrd Mat Sub Slots Evolved . | . . . Power . | . . . Propulsion . | . . . Utility . | . . . Weapon . | . . . Parts Attached 18 | 6 12 . Power 3 | 1 2 . Engine 3 | 1 2 . Core . | . . . Reactor . | . . . Propulsion 5 | 2 3 . Treads 3 | 2 1 . Leg 2 | . 2 . Wheel . | . . . Hover . | . . . Flight . | . . . Utility 5 | 1 4 . Device 1 | . 1 . Storage 3 | 1 2 . Processor . | . . . Hackware . | . . . Protection 1 | . 1 . Artifact . | . . . Weapon 5 | 2 3 . Energy Gun 2 | 2 . . Energy Cannon . | . . . Ballistic Gun 2 | . 2 . Ballistic Cannon . | . . . Launcher 1 | . 1 . Special Weapon . | . . . Impact Weapon . | . . . Slashing Weapon . | . . . Piercing Weapon . | . . . Special Melee Weapon . | . . . Unidentified Prototypes . | . . . Parts Lost 4 | . 4 . Power 1 | . 1 . Propulsion 1 | . 1 . Utility . | . . . Weapon 2 | . 2 . Highest Loss Streak 4 | . 4 . To Critical Strikes . | . . . Average Slot Usage (%) 97 | . 96 100 Engine 13 | . 13 14 Treads 4 | . 5 . Leg 22 | . 21 28 Device 6 | . 5 14 Storage 14 | . 14 14 Protection 6 | . 7 . Energy Gun 1 | . 1 . Ballistic Gun 24 | . 24 28 Launcher 1 | . 1 . Naked Turns . | . . . Heaviest Build 91 | 12 91 91 Greatest Support 40 | 40 40 20 Greatest Overweight (x) 4 | 1 4 4 Average Overweight (x) 2 | . 1 4 Largest Inventory Capacity 25 | 8 25 25 Average Capacity 19 | 7 19 25 Most Carried 14 | 6 14 14 Average Carried 7 | 1 7 14 Final Capacity 25 | 8 25 25 Final Carried 14 | 1 14 14 Class Distribution -------------------- 100% | Mutant Dominant Class ---------------- Mutant | -10/Materials Mutant | -10/Subcaves Resources | -11 -10 -10 ----------- Run | Yrd Mat Sub Matter Collected 604 | 192 412 . Remotely . | . . . Salvage Created 388 | . 388 . Parts 19 | . 19 . Haulers Intercepted . | . . . Recyclers Shooed . | . . . Parts Field Recycled . | . . . Retrieved Matter . | . . . Parts Self-Destructed 6 | . . 6 Prevented . | . . . Kills | -11 -10 -10 ------- Run | Yrd Mat Sub Combat Hostiles Destroyed 13 | . 13 . Guns 7 | . 7 . AOE 6 | . 6 . Classes Destroyed 4 | . 4 . Worker 1 | . 1 . Watcher 1 | . 1 . Swarmer 3 | . 3 . Grunt 10 | . 10 . Best Kill Streak 5 | . 5 . Combat Bots Only 5 | . 5 . Max Kills in Single Turn 2 | . 2 . Gunslinging . | . . . Exploded 2 | . 2 . Melee . | . . . Uniques/NPCs Destroyed . | . . . Combat | -11 -10 -10 -------- Run | Yrd Mat Sub Hostile Shots Fired 95 | . 80 15 Missed 27 | . 22 5 Damage Taken 1040 | . 839 201 Core 266 | . 225 41 Absorbed by Shields 73 | . . 73 Core Remaining (%) 100 | 100 . . Volleys Fired 49 | . 49 . Largest 2 | . 2 . Hottest 80 | . 80 . Shots Fired 92 | . 92 . Gun 88 | . 88 . Cannon . | . . . Launcher 4 | . 4 . Special . | . . . Kinetic 82 | . 82 . Thermal . | . . . Explosive 4 | . 4 . Electromagnetic 6 | . 6 . Robot Hit Streak 8 | . 8 . Robot Miss Streak 6 | . 6 . Penetration Max . | . . . Secondary Targets 1 | . 1 . Max Gunslinging Chain 1 | . 1 . Shots Hit Robots 39 | . 39 . Core Hits 25 | . 25 . Critical Kills . | . . . Critical Parts Destroyed 1 | . 1 . Critical Strikes 1 | . 1 . Destroy 1 | . 1 . Melee Attacks . | . . . Impact . | . . . Slashing . | . . . Piercing . | . . . Sneak Attacks . | . . . Combat Hostiles . | . . . Follow-up Attacks . | . . . Damage Inflicted 1450 | . 1450 . Guns 475 | . 475 . Cannons . | . . . Explosions 975 | . 975 . Melee . | . . . Ramming . | . . . Kinetic 435 | . 435 . Thermal 489 | . 489 . Explosive 486 | . 486 . Electromagnetic 40 | . 40 . Impact . | . . . Slashing . | . . . Piercing . | . . . Highest Corruption . | . . . Average Corruption . | . . . Corruption Purged . | . . . Corruption Blocked . | . . . Overload Shots . | . . . Overflow Damage 161 | . 161 . Projectiles . | . . . Explosions 161 | . 161 . Melee . | . . . Knockbacks . | . . . Impact . | . . . Kinetic . | . . . Secondary . | . . . Self-Inflicted Damage 188 | . 188 . Shots 3 | . 3 . Rammed . | . . . Targets Rammed . | . . . Kicked . | . . . Crushed . | . . . Highest Temperature 166 | . 39 166 Average Temperature 36 | . 14 98 Received Heat Transfer 767 | . 327 440 Siege Activations . | . . . Robots Corrupted . | . . . Combat Hostiles . | . . . Parts Fried . | . . . Impact Corruptions . | . . . Robots Melted . | . . . Combat Hostiles . | . . . Parts Melted . | . . . Heat Transferred 400 | . 400 . Parts Sabotaged . | . . . Parts Stolen . | . . . Parts Stripped . | . . . Power Chain Reactions 1 | . 1 . Alert | -11 -10 -10 ------- Run | Yrd Mat Sub Peak Influence 225 | . 225 . Initial . | . . . Average 45 | . 46 . Maximum Alert Level 1 | . 1 . Low Security (%) 94 | 100 93 . Level 1 5 | . 6 . Level 2 . | . . . Level 3 . | . . . Level 4 . | . . . Level 5 . | . . . High Security . | . . . Max Security . | . . . Squads Dispatched 3 | . 3 . Investigation 1 | . 1 . Extermination . | . . . Reinforcement 2 | . 2 . Assault . | . . . Garrison . | . . . Intercept . | . . . Searches Triggered . | . . . Construction Impeded . | . . . Haulers Reinforced . | . . . Active Scanning Responses . | . . . Cargo Convoy Interrupts . | . . . Stealth | -11 -10 -10 --------- Run | Yrd Mat Sub Distress Signals 1 | . 1 . Communications Jammed . | . . . Distress Signals . | . . . Times Spotted 18 | . 16 2 Peak Tracking Total 5 | . 5 2 Tactical Retreats . | . . . Traps | -11 -10 -10 ------- Run | Yrd Mat Sub Traps Triggered . | . . . Indirectly . | . . . Trap Hack Attempts . | . . . Triggered . | . . . Disarmed 1 | . 1 . Reprogrammed . | . . . Reused . | . . . Traps Extracted . | . . . Installed . | . . . Triggered . | . . . Machines | -11 -10 -10 ---------- Run | Yrd Mat Sub Machines Disabled 7 | . 7 . Max in Single Turn 3 | . 3 . Machines Repaired . | . . . Machines Dismantled . | . . . Machines Sabotaged . | . . . Overloaded Fab Kills . | . . . Hacking | -11 -10 -10 --------- Run | Yrd Mat Sub Machines Accessed 5 | . 5 . Terminals 4 | . 4 . Fabricators . | . . . Repair Stations . | . . . Recycling Units 1 | . 1 . Scanalyzers . | . . . Garrison Access . | . . . Total Hacks 13 | . 13 . Successful 8 | . 8 . Failed 5 | . 5 . Catastrophic 2 | . 2 . Database Lockouts . | . . . Manual . | . . . Terminals 11 | . 11 . Fabricators . | . . . Repair Stations . | . . . Recycling Units 2 | . 2 . Scanalyzers . | . . . Garrison Access . | . . . Terminal Hacks 7 | . 7 . Prototype ID Bank 1 | . 1 . Emergency Access Points 1 | . 1 . Unreport Threat 1 | . 1 . Locate Traps 1 | . 1 . Disarm Traps 1 | . 1 . Registered Components 1 | . 1 . Zone Layout 1 | . 1 . Fabricator Hacks . | . . . Repair Station Hacks . | . . . Recycling Unit Hacks 1 | . 1 . Retrieve Components 1 | . 1 . Scanalyzer . | . . . Garrison Access Hacks . | . . . Unauthorized Hacks . | . . . Terminals . | . . . Fabricators . | . . . Repair Stations . | . . . Recycling Units . | . . . Scanalyzers . | . . . Garrison Access . | . . . Data Cores Recovered . | . . . Used . | . . . Hacking Detections 2 | . 2 . Full Trace Events 1 | . 1 . Feedback Events . | . . . Feedback Blocked . | . . . Robot Schematics Acquired . | . . . Robots Built . | . . . Authchips . | . . . Time . | . . . Total Robot Build Rating . | . . . Part Schematics Acquired . | . . . Parts Built . | . . . Authchips . | . . . Time . | . . . Total Part Build Rating . | . . . Parts Repaired . | . . . Time . | . . . Parts Recycled . | . . . Recycled Matter . | . . . Retrieved Matter . | . . . Retrieved Components . | . . . Parts Scanalyzed . | . . . Part Schematics Acquired . | . . . Parts Damaged . | . . . Bothacking | -11 -10 -10 ------------ Run | Yrd Mat Sub Used RIF Installer . | . . . Robots Hacked . | . . . Non-combat . | . . . Combat . | . . . Robot Hacks Applied . | . . . Relay Couplers Released . | . . . Fabnet Peak Effective % . | . . . Robots Rewired . | . . . Allies Hacked . | . . . Hacks Repelled . | . . . Allies | -11 -10 -10 -------- Run | Yrd Mat Sub Total Allies . | . . . Largest Group . | . . . Highest-Rated Group . | . . . Highest-Rated Ally . | . . . Total Orders . | . . . Ally Attacks . | . . . Total Damage . | . . . Kills . | . . . Allies Corrupted . | . . . Allies Melted . | . . . Intel | -11 -10 -10 ------- Run | Yrd Mat Sub Robot Analysis Total . | . . . Derelict Logs Recovered . | . . . Drone Launches . | . . . Drone Recoveries . | . . . Exploration | -11 -10 -10 ------------- Run | Yrd Mat Sub Turns Passed 2858 | 91 2294 473 Spaces Moved 952 | 54 779 119 Core 27 | 27 . . Treads 307 | 27 280 . Legs 618 | . 499 119 Wheels . | . . . Hover . | . . . Flight . | . . . Fastest Speed 50 | 50 160 400 Average Speed 275 | 126 267 400 Slowest Speed 400 | 160 400 400 Overloaded Moves . | . . . Propulsion Burnouts . | . . . Robots Hopped . | . . . Cave-ins Triggered . | . . . Exploration Rate (%) 36 | 4 89 15 Regions Visited 2 Branch Regions 1 Pre-discovered Areas . | . . . Known Exits Taken . | . . . Unknown Exits Taken 2 | 1 1 . Scrap Searched . | . . . Spaces Dug 5 | . 5 . Terrain Destroyed 83 | . 83 . Melee . | . . . Projectile . | . . . AOE 83 | . 83 . Terrain Rammed . | . . . Walls Destroyed . | . . . Machines Disabled . | . . . Actions | -11 -10 -10 --------- Run | Yrd Mat Sub Total 1098 | 77 902 119 Wait 46 | 11 35 . Move 950 | 53 778 119 Hop . | . . . Pick Up 30 | 7 23 . Fast Attach . | . . . Attach 11 | 6 5 . Detach . | . . . Swap 7 | . 7 . Drop 5 | . 5 . Fire 49 | . 49 . Melee . | . . . Ram . | . . . Kick . | . . . Crush . | . . . Escape Stasis . | . . . Rewire . | . . . Trap . | . . . Miscellaneous . | . . . Route ------- -11/Scrapyard -10/Materials (discovered 6 exits: [*Mat x3] / [*Min x2] / [*Sub]) -10/Subcaves History --------- Turn | Location | Event 22 | -11/Scrapyard | Discovered new exit (range 15) 92 | -11/Scrapyard | Entered Materials 242 | -10/Materials | Core integrity fell below 50% 279 | -10/Materials | Lost 4 parts (1p1n2w) 313 | -10/Materials | Build established: Mutant 457 | -10/Materials | Discovered new exit (range 6) 476 | -10/Materials | Discovered new exit (range 13) 714 | -10/Materials | Discovered new exit (range 15) 1079 | -10/Materials | Core integrity fell below 20% 1180 | -10/Materials | Discovered new exit (range 15) 1533 | -10/Materials | Discovered new exit (range 16) 2088 | -10/Materials | Discovered new exit (range 10) 2386 | -10/Materials | Entered Subcaves 2859 | -10/Subcaves | Destroyed by IH-OVT(R) with Subdweller Beam Cannon Last Messages --------------- 01452_ R-06 Scavenger collects Aluminum Leg. 01454_ T-07 Excavator is excavating. 01454_ U-05 Engineer builds a Wall. 01491_ Acquired Shield Generator. 01533_ EXIT=FOUND 01565_ Connecting with Terminal... >>Prototypes Downloading prototype IDs... Adv. Beam Cannon Imp. Medium Laser 01605_ Acquired 28 matter. 01749_ Acquired Flight Unit. 02088_ EXIT=FOUND 02216_ Acquired Datajack. 02330_ Acquired 50 matter. LOCATION=UNKNOWN AMBIENT_HEAT=-10 GOAL=ESCAPE 02841_ Critical hit (Meltdown: +200). 02857_ Critical hit (Meltdown: +180). Map ----- +----------------------------------------------------+ | ???????????????????????# ??????????????????????? | | ???????????????????????# ??????????????????????? | | ??????????????????????? ??????????????????????? | | ??????????????????????## #??????????????????????? | | ??????????????????????# #??????????????????????? | | ?????????????????#????# #??????????????????????? | | ?????????????????#"""## ##?????????????????????? | | ????????????????????? #?????????????????????? | | ????????????????????????# #?????????????????????? | | ???????????????????????## #?????????????????????? | | ???????????????????????# #?????????????????????? | | ??????????????????????## #?????????????????????? | | ?????????????????????## ##????????????????????? | | ????????????????????## #????????????????????? | | ???????????????###?## #####????????????????????? | | ??????????????## ### ###??????????????????????? | | ??????????????# #??????????????????????? | | ??????????????## ## ##??????????????????????? | | ????????????#### ####???????????????????????? | | ???????????## R ##????????????????????????? | | ??????????## #????????????????????????? | | ?????????## #????????????????????????? | | ???????### R###??????????????????????? | | ???????# ##?????????????????????? | | ??????## ###???????????????????? | | ??????# @ #???????????????????? | | ??#####" #??????????????????? | | ??# #"" ;## #?????????????????? | | ??# ##?# #?????????????????? | | ??# ####?? ????????????????? | | ??# #" ## ##????? #??????????????? | | ??#??## ## ##?????? #??????????????? | | ??????# ## ####??????? #####??????????????? | | ??????## ########????? ## ##??????????????????? | | ???????# ### ##????###?##???????????????????? | | ??????## ## #?????????????????????????????? | | ??????# #?????????????????????????????? | | ??????# #?????????????????????????????? | | ??????# ## ##?????????????????????????????? | | ??????## #?????????????????????????????????? | | ???????## #?????????????????????????????????? | | ????????# ###???????????????????????????????? | | ???????## #???????????????????????????????? | | ???????# #???????????????????????????????? | | ???????# #???????????????????????????????? | | ???????## ##??????????????????????????????? | | ???????## #??????????????????????????????? | | ??????## ##?????????????????????????????? | | ??????# ###???????????????????????????? | | ?????## ##??????????????????????????? | +----------------------------------------------------+ Best States ------------- Heat Dissipation 25 Energy Generation 10 Energy Capacity 250 Matter Stores 258 Matter Capacity 300 Sight Range 16 Terrain Scan Density 10 Armor Coverage 80 Evasion (%) 40 Recoil Reduction 2 Item Schematics ----------------- None Robot Schematics ------------------ None Fabricated ------------ Nothing Alien Tech Used ----------------- None Achievements -------------- None Challenges ------------ None Game ------ Seed LinearShockCasing Manual? 0 Play Time 00:15:22 Cumulative 5.7 hours Start 2024.04.07 @ 05:28:48 End 2024.04.07 @ 05:44:08 Sessions 1 Manual Loads 0 Difficulty Rogue Special Mode None Game No. 10 Rogue 10 Adventurer 0 Explorer 0 Win Type - Total 0 Types 0/0/0/0/0/0/0/0/0 Lore% 2 Gallery% 7 Achievement% 6 Wizard Run 0 Options --------- Layout 1 ASCII 0 Keyboard 0 Movement Mouse Keybinds 0 Fullscreen 2 Font 32/SmallcapsGlow Map View 50x35 Zoom Use 0% Tactical HUD 1 Map Filters NONE Filters NONE Steam 1 RUN: 843a63e1-76fe-4170-8d56-39b892bc9494